fUSD/lending_fUSD_20240802
["ID","MTS","AMOUNT","RATE_DAILY","PERIOD"]
[333912970,1722625843963,-579.16,0.00016438,2]
[333912971,1722625843973,-500.0,0.00016438,2]
[333912972,1722625843983,-500.0,0.00016438,2]
[333912973,1722625843992,-500.0,0.00016438,2]
[333912974,1722625844002,-1587.63,0.00016438,2]
[333912975,1722625844011,-950.59,0.00016438,2]
[333912976,1722625844021,-500.0,0.00016438,2]
[333912977,1722625844031,-6043.56,0.00016438,2]
[333912978,1722625844042,-500.0,0.00016438,2]
[333912979,1722625844052,-500.0,0.00016438,2]
[333912980,1722625844062,-574.29,0.00016438,2]
[333912981,1722625844071,-1343.76,0.00016438,2]
[333912982,1722625844081,-500.0,0.00016438,2]
[333912983,1722625844090,-790.43,0.00016438,2]
[333912984,1722625844099,-1178.43,0.00016438,2]
[333912985,1722625844109,-3667.92,0.00016438,2]
[333912986,1722625844118,-2249.67,0.00016438,2]
[333912987,1722625844128,-1671.7,0.00016438,2]
[333912988,1722625844137,-500.0,0.00016438,2]
[333912989,1722625844147,-500.0,0.00016438,2]
[333912990,1722625844156,-500.0,0.00016438,2]
[333912991,1722625844165,-777.41,0.00016438,2]
[333912992,1722625844174,-1367.8,0.00016438,2]
[333912993,1722625844184,-925.76,0.00016438,2]
[333912994,1722625844193,-500.0,0.00016438,2]
[333912995,1722625844202,-615.84,0.00016438,2]
[333912996,1722625844213,-1012.98,0.00016438,2]
[333912997,1722625844223,-547.9,0.00016438,2]
[333912998,1722625844234,-941.54,0.00016438,2]
[333912999,1722625844244,-1036.71,0.00016438,2]
[333913000,1722625844253,-572.91,0.00016438,2]
[333913001,1722625844263,-1092.43,0.00016438,2]
[333913002,1722625844272,-500.0,0.00016438,2]
[333913003,1722625844282,-2249.66,0.00016438,2]
[333913004,1722625844293,-500.0,0.00016438,2]
[333913005,1722625844303,-1313.22,0.00016438,2]
[333913006,1722625844312,-3965.51,0.00016438,2]
[333913007,1722625844322,-500.0,0.00016438,2]
[333913008,1722625844331,-623.95,0.00016438,2]
[333913009,1722625844341,-1000.0,0.00016438,2]
[333913010,1722625844350,-8796.69,0.00016438,2]
[333913011,1722625844360,-1513.98,0.00016438,2]
[333913012,1722625844369,-500.0,0.00016438,2]
[333913013,1722625844379,-500.0,0.00016438,2]
[333913014,1722625844388,-1528.02,0.00016438,2]
[333913015,1722625844399,-500.0,0.00016438,2]
[333913016,1722625844409,-500.0,0.00016438,2]
[333913017,1722625844419,-1098.83,0.00016438,2]
[333913018,1722625844429,-500.0,0.00016438,2]
[333913019,1722625844439,-500.0,0.00016438,2]
[333913020,1722625844449,-568.25,0.00016438,2]
[333913021,1722625844458,-500.0,0.00016438,2]
[333913022,1722625844467,-2184.0,0.00016438,2]
[333913023,1722625844477,-13517.66,0.00016438,2]
[333913024,1722625844486,-753.07,0.00016438,2]
[333913025,1722625844495,-500.0,0.00016438,2]
[333913026,1722625844505,-503.69,0.00016438,2]
[333913027,1722625844514,-1099.23,0.00016438,2]
[333913028,1722625844523,-4420.82,0.00016438,2]
[333913029,1722625844533,-400.0,0.00016438,2]
[333913030,1722625844543,-2155.02,0.00016438,2]
[333913031,1722625844556,-500.0,0.00016438,2]
[333913032,1722625844566,-1090.27,0.00016438,2]
[333913033,1722625844576,-1336.62,0.00016438,2]
[333913034,1722625844585,-500.0,0.00016438,2]
[333913035,1722625844594,-500.0,0.00016438,2]
[333913036,1722625844603,-2458.17,0.00016438,2]
[333913037,1722625844612,-5773.43,0.00016438,2]
[333913038,1722625844621,-760.33,0.00016438,2]
[333913039,1722625844631,-3031.59,0.00016438,2]
[333913040,1722625844640,-500.0,0.00016438,2]
[333913041,1722625844649,-26364.0,0.00016438,2]
[333913042,1722625844660,-1043.18,0.00016438,2]
[333913043,1722625844670,-7701.31,0.00016438,2]
[333913044,1722625844681,-1567.64,0.00016438,2]
[333913045,1722625844691,-500.0,0.00016438,2]
[333913046,1722625844700,-1047.41,0.00016438,2]
[333913047,1722625844709,-500.0,0.00016438,2]
[333913048,1722625844723,-500.0,0.00016438,2]
[333913049,1722625844738,-542.51,0.00016438,2]
[333913050,1722625844750,-2775.85,0.00016438,2]
[333913051,1722625844760,-1715.86,0.00016438,2]
[333913052,1722625844770,-1485.56,0.00016438,2]
[333913053,1722625844779,-1271.66,0.00016438,2]
[333913054,1722625844790,-1162.03,0.00016438,2]
[333913055,1722625844801,-500.0,0.00016438,2]
[333913056,1722625844811,-500.0,0.00016438,2]
[333913057,1722625844820,-22683.05,0.00016438,2]
[333913058,1722625844830,-500.0,0.00016438,2]
[333913059,1722625844839,-2177.56,0.00016438,2]
[333913060,1722625844848,-1048.81,0.00016438,2]
[333913061,1722625844858,-660.9,0.00016438,2]
[333913062,1722625844867,-6168.29,0.00016438,2]
[333913063,1722625844876,-4635.62,0.00016438,2]
[333913064,1722625844885,-500.0,0.00016438,2]
[333913065,1722625844895,-4270.46,0.00016438,2]
[333913066,1722625844904,-500.0,0.00016438,2]
[333913067,1722625844914,-1295.97,0.00016438,2]
[333913068,1722625844923,-2532.22,0.00016438,2]
[333913069,1722625844932,-648.92,0.00016438,2]
[333913070,1722625844942,-7556.73,0.00016438,2]
[333913071,1722625844952,-500.0,0.00016438,2]
[333913072,1722625844962,-563.32,0.00016438,2]
[333913073,1722625844971,-500.0,0.00016438,2]
[333913074,1722625844981,-500.0,0.00016438,2]
[333913075,1722625844990,-62829.74,0.00016438,2]
[333913076,1722625844999,-811.9,0.00016438,2]
[333913077,1722625845008,-531.36020195,0.00016438,2]
[333913078,1722625845018,-500.0,0.00016438,2]
[333913079,1722625845028,-894.54,0.00016438,2]
[333913080,1722625845037,-1850.35,0.00016438,2]
[333913081,1722625845047,-6634.38,0.00016438,2]
[333913082,1722625845056,-1894.19,0.00016438,2]
[333913083,1722625845066,-500.0,0.00016438,2]
[333913084,1722625845076,-5273.66,0.00016438,2]
[333913085,1722625845086,-23235.91,0.00016438,2]
[333913086,1722625845095,-3142.29,0.00016438,2]
[333913087,1722625845104,-500.0,0.00016438,2]
[333913088,1722625845114,-500.0,0.00016438,2]
[333913089,1722625845124,-828.44,0.00016438,2]
[333913090,1722625845133,-884.54,0.00016438,2]
[333913091,1722625845143,-2324.06,0.00016438,2]
[333913092,1722625845153,-500.0,0.00016438,2]
[333913093,1722625845162,-500.0,0.00016438,2]
[333913094,1722625845172,-500.0,0.00016438,2]
[333913095,1722625845181,-1730.59,0.00016438,2]
[333913096,1722625845191,-2448.38,0.00016438,2]
[333913097,1722625845200,-2138.24,0.00016438,2]
[333913098,1722625845209,-500.0,0.00016438,2]
[333913099,1722625845219,-500.0,0.00016438,2]
[333913100,1722625845228,-2618.16,0.00016438,2]
[333913101,1722625845237,-307.58961425,0.00016438,2]
[333913102,1722625845246,-641.14,0.00016438,2]
[333913103,1722625845257,-500.0,0.00016438,2]
[333913104,1722625845266,-4669.03,0.00016438,2]
[333913105,1722625845276,-500.0,0.00016438,2]
[333913106,1722625845285,-500.0,0.00016438,2]
[333913107,1722625845295,-500.0,0.00016438,2]
[333913108,1722625845304,-500.0,0.00016438,2]
[333913109,1722625845314,-700.59,0.00016438,2]
[333913110,1722625845323,-5252.31,0.00016438,2]
[333913111,1722625845332,-2282.33,0.00016438,2]
[333913112,1722625845341,-2064.63,0.00016438,2]
[333913113,1722625845350,-1004.86,0.00016438,2]
[333913114,1722625845359,-1137.37,0.00016438,2]
[333913116,1722625845368,-533.06,0.00016438,2]
[333913118,1722625845378,-1958.62,0.00016438,2]
[333913119,1722625845387,-21849.78,0.00016438,2]
[333913121,1722625845396,-1331.37,0.00016438,2]
[333913124,1722625845408,-500.0,0.00016438,2]
[333913126,1722625845419,-2525.01,0.00016438,2]
[333913128,1722625845430,-500.0,0.00016438,2]
[333913130,1722625845439,-3570.41,0.00016438,2]
[333913132,1722625845450,-3376.17,0.00016438,2]
[333913134,1722625845460,-4668.44010238,0.00016438,2]
[333913135,1722625845482,-5621.58989762,0.00016438,2]
[333913136,1722625845491,-1898.28,0.00016438,2]
[333913137,1722625845502,-500.0,0.00016438,2]
[333913138,1722625845511,-500.0,0.00016438,2]
[333913139,1722625845522,-660.7,0.00016438,2]
[333913140,1722625845531,-500.0,0.00016438,2]
[333913142,1722625845543,-4254.92,0.00016438,2]
[333913144,1722625845552,-500.0,0.00016438,2]
[333913145,1722625845562,-565.87,0.00016438,2]
[333913146,1722625845571,-889.61,0.00016438,2]
[333913147,1722625845580,-500.0,0.00016438,2]
[333913148,1722625845589,-500.0,0.00016438,2]
[333913149,1722625845599,-2148.14,0.00016438,2]
[333913150,1722625845608,-9410.16,0.00016438,2]
[333913151,1722625845618,-982.27,0.00016438,2]
[333913152,1722625845627,-500.0,0.00016438,2]
[333913153,1722625845637,-1590.95,0.00016438,2]
[333913154,1722625845646,-1380.04,0.00016438,2]
[333913155,1722625845655,-2506.24,0.00016438,2]
[333913156,1722625845664,-500.0,0.00016438,2]
[333913157,1722625845674,-500.0,0.00016438,2]
[333913158,1722625845685,-1303.36002553,0.00016438,2]
[333913160,1722625845698,-250.19997447,0.00016438,2]
[333913161,1722625845707,-2805.61,0.00016438,2]
[333913162,1722625845716,-4818.8,0.00016438,2]
[333913163,1722625845729,-889.24,0.00016438,2]
[333913164,1722625845739,-2731.11,0.00016438,2]
[333913165,1722625845748,-1019.02,0.00016438,2]
[333913166,1722625845758,-11195.84,0.00016438,2]
[333913167,1722625845769,-931.95,0.00016438,2]
[333913168,1722625845778,-4774.09840723,0.00016438,2]
[333913169,1722625845793,-443.81585153,0.00016438,2]
[333913170,1722625845809,-21195.61122195,0.00016438,2]
[333913171,1722625845820,-1184.18321914,0.00016438,2]
[333913172,1722625845832,-381.33465368,0.00016438,2]
[333913173,1722625845843,-322.40662939,0.00016438,2]
[333913174,1722625845853,-541.90799385,0.00016438,2]
[333913175,1722625845864,-994.53623725,0.00016438,2]
[333913176,1722625845878,-7932.76422685,0.00016438,2]
[333913177,1722625845889,-1731.09387748,0.00016438,2]
[333913178,1722625845901,-3057.47809138,0.00016438,2]
[333913179,1722625845912,-2192.4951309,0.00016438,2]
[333913180,1722625845925,-19851.5830375,0.00016438,2]
[333913181,1722625845938,-2183.78142187,0.00016438,2]
[333913182,1722625845947,-768.14,0.00016438,2]
[333913183,1722625845956,-2558.13956252,0.00016438,2]
[333913184,1722625845967,-248.89043748,0.00016438,2]
[333913185,1722625845976,-500.0,0.00016438,2]
[333913186,1722625845986,-13156.7,0.00016438,2]
[333913187,1722625845995,-500.0,0.00016438,2]
[333913188,1722625846004,-1658.8,0.00016438,2]
[333913189,1722625846013,-500.0,0.00016438,2]
[333913190,1722625846023,-1804.54,0.00016438,2]
[333913191,1722625846032,-1540.1,0.00016438,2]
[333913192,1722625846044,-4659.38,0.00016438,2]
[333913193,1722625846053,-5318.22,0.00016438,2]
[333913194,1722625846062,-1229.85,0.00016438,2]
[333913195,1722625846071,-4500.83,0.00016438,2]
[333913196,1722625846080,-247.26,0.00016438,2]
[333913197,1722625846089,-72.72329526,0.00016438,2]
[333913198,1722625846100,-250.39418971,0.00016438,2]
[333913199,1722625846111,-176.88251503,0.00016438,2]
[333913200,1722625846120,-1423.13672434,0.00016438,2]
[333913201,1722625846131,-674.47,0.00016438,2]
[333913202,1722625846142,-259.10297569,0.00016438,2]
[333913203,1722625846156,-697.22222227,0.00016438,2]
[333913212,1722625847281,-58.9680777,0.00016438,2]
[333913213,1722625847295,-1166.9683976,0.00016438,2]
[333913214,1722625847306,-362.5816024,0.00016438,2]
[333913215,1722625847315,-534.63,0.00016438,2]
[333913216,1722625847325,-500.0,0.00016438,2]
[333913217,1722625847334,-151.13147362,0.00016438,2]
[333913218,1722625847345,-509.73860691,0.00016438,2]
[333913219,1722625847356,-649.02,0.00016438,2]
[333913220,1722625847367,-644.10641409,0.00016438,2]
[333913221,1722625847378,-3889.24350538,0.00016438,2]
[333913222,1722625847388,-500.0,0.00016438,2]
[333913223,1722625847397,-500.0,0.00016438,2]
[333913224,1722625847407,-15333.58,0.00016438,2]
[333913225,1722625847417,-500.0,0.00016438,2]
[333913226,1722625847427,-473.34302088,0.00016438,2]
[333913227,1722625848026,-10859.26844942,0.00016438,7]
[333913228,1722625848048,-263190.00655217,0.00016438,7]
[333913229,1722625848057,-1169.0,0.00016438,2]
[333913230,1722625848067,-26.65697912,0.00016438,2]
[333913231,1722625848076,-743.26,0.00016438,2]
[333913232,1722625848086,-4436.8,0.00016438,2]
[333913233,1722625848096,-1720.73,0.00016438,2]
[333913234,1722625848106,-1425.47,0.00016438,2]
[333913235,1722625848116,-500.0,0.00016438,2]
[333913236,1722625848126,-500.0,0.00016438,2]
[333913237,1722625848135,-500.0,0.00016438,2]
[333913238,1722625848145,-878.9,0.00016438,2]
[333913239,1722625848157,-804.56,0.00016438,2]
[333913240,1722625848166,-5797.75,0.00016438,2]
[333913241,1722625848176,-13544.14,0.00016438,2]
[333913242,1722625848186,-500.0,0.00016438,2]
[333913243,1722625848195,-500.0,0.00016438,2]
[333913244,1722625848205,-1382.89,0.00016438,2]
[333913245,1722625848214,-2619.79,0.00016438,2]
[333913246,1722625848224,-500.0,0.00016438,2]
[333913247,1722625848233,-163.91834831,0.00016438,2]
[333913248,1722625848243,-1743.61,0.00016438,2]
[333913249,1722625848253,-4127.0,0.00016438,2]
[333913250,1722625848263,-500.0,0.00016438,2]
[333913251,1722625848272,-1898.37,0.00016438,2]
[333913252,1722625848282,-500.0,0.00016438,2]
[333913253,1722625848293,-500.0,0.00016438,2]
[333913254,1722625848303,-500.0,0.00016438,2]
[333913255,1722625848313,-1971.09,0.00016438,2]
[333913256,1722625848323,-2185.76,0.00016438,2]
[333913257,1722625848333,-500.0,0.00016438,2]
[333913258,1722625848343,-23011.69,0.00016438,2]
[333913259,1722625848353,-2291.23,0.00016438,2]
[333913260,1722625848362,-3198.49,0.00016438,2]
[333913261,1722625848371,-691.44,0.00016438,2]
[333913262,1722625848381,-500.0,0.00016438,2]
[333913263,1722625848391,-1554.23,0.00016438,2]
[333913264,1722625848400,-3797.93,0.00016438,2]
[333913265,1722625848410,-500.0,0.00016438,2]
[333913266,1722625848419,-7768.16,0.00016438,2]
[333913267,1722625848429,-2894.18,0.00016438,2]
[333913268,1722625848439,-500.0,0.00016438,2]
[333913269,1722625848448,-919.93,0.00016438,2]
[333913270,1722625848457,-1507.71,0.00016438,2]
[333913271,1722625848467,-500.0,0.00016438,2]
[333913272,1722625848476,-1540.25,0.00016438,2]
[333913273,1722625848487,-2455.87,0.00016438,2]
[333913274,1722625848496,-9465.23,0.00016438,2]
[333913275,1722625848506,-618.78,0.00016438,2]
[333913276,1722625848515,-4168.12,0.00016438,2]
[333913277,1722625848525,-1902.74,0.00016438,2]
[333913278,1722625848534,-2954.24,0.00016438,2]
[333913279,1722625848547,-500.0,0.00016438,2]
[333913280,1722625848557,-500.0,0.00016438,2]
[333913281,1722625848567,-4010.74,0.00016438,2]
[333913282,1722625848577,-500.0,0.00016438,2]
[333913283,1722625848946,-500.0,0.00016438,2]
[333913284,1722625848972,-824.53,0.00016438,2]
[333913285,1722625848982,-10833.02,0.00016438,2]
[333913286,1722625848992,-1898.76,0.00016438,2]
[333913287,1722625849002,-5335.44,0.00016438,2]
[333913288,1722625849011,-2068.58,0.00016438,2]
[333913289,1722625849020,-11572.11,0.00016438,2]
[333913290,1722625849030,-1460.55,0.00016438,2]
[333913291,1722625849041,-500.0,0.00016438,2]
[333913292,1722625849050,-1682.65,0.00016438,2]
[333913293,1722625849060,-500.0,0.00016438,2]
[333913294,1722625849070,-2829.29,0.00016438,2]
[333913295,1722625849079,-500.0,0.00016438,2]
[333913296,1722625849089,-500.0,0.00016438,2]
[333913297,1722625849099,-7885.64,0.00016438,2]
[333913298,1722625849108,-6473.26,0.00016438,2]
[333913299,1722625849118,-708.24,0.00016438,2]
[333913300,1722625849128,-500.0,0.00016438,2]
[333913301,1722625849137,-1502.69,0.00016438,2]
[333913302,1722625849147,-500.0,0.00016438,2]
[333913303,1722625849156,-887.27,0.00016438,2]
[333913304,1722625849166,-731.74,0.00016438,2]
[333913305,1722625849175,-501.41298749,0.00016438,2]
[333913306,1722625849185,-13942.49627297,0.00016438,2]
[333913307,1722625849198,-2430.53542353,0.00016438,2]
[333913308,1722625849218,-1300.57762487,0.00016438,2]
[333913309,1722625849230,-392.85540526,0.00016438,2]
[333913310,1722625849241,-891.51412651,0.00016438,2]
[333913311,1722625849252,-4263.44190686,0.00016438,2]
[333913312,1722625849264,-6158.36043945,0.00016438,2]
[333913313,1722625849275,-1396.69046004,0.00016438,2]
[333913314,1722625849286,-252.0,0.00016438,2]
[333913315,1722625849489,-525.10834051,0.00016438,2]
[333913316,1722625849499,-500.0,0.00016438,2]
[333913317,1722625849509,-1442.71,0.00016438,2]
[333913318,1722625849519,-500.0,0.00016438,2]
[333913319,1722625849528,-323.57231317,0.00016438,2]
[333913320,1722625849573,-1266.16768683,0.00016438,2]
[333913321,1722625849584,-1605.23,0.00016438,2]
[333913322,1722625849594,-3716.92,0.00016438,2]
[333913323,1722625849604,-502.1,0.00016438,2]
[333913324,1722625849613,-3267.92,0.00016438,2]
[333913325,1722625849623,-1452.57,0.00016438,2]
[333913326,1722625849632,-500.0,0.00016438,2]
[333913327,1722625849641,-500.0,0.00016438,2]
[333913328,1722625849651,-3866.81,0.00016438,2]
[333913329,1722625849660,-634.11,0.00016438,2]
[333913330,1722625849670,-6100.69455476,0.00016438,2]
[333913331,1722625849895,-869.95370905,0.00016438,2]
[333913332,1722625850028,-478.6711612,0.00016438,2]
[333913333,1722625850041,-800.90047991,0.00016438,2]
[333913334,1722625850064,-2425.04959483,0.00016438,2]
[333913335,1722625850083,-3165.25313711,0.00016438,2]
[333913336,1722625850095,-627.59413878,0.00016438,2]
[333913337,1722625850107,-15083.10322436,0.00016438,2]
[333913338,1722625850117,-1311.98,0.00016438,2]
[333913339,1722625850126,-500.0,0.00016438,2]
[333913340,1722625850136,-6827.66,0.00016438,2]
[333913341,1722625850145,-500.0,0.00016438,2]
[333913342,1722625850155,-740.1,0.00016438,2]
[333913343,1722625850165,-2034.51,0.00016438,2]
[333913344,1722625850175,-9863.38,0.00016438,2]
[333913345,1722625850184,-551.03,0.00016438,2]
[333913346,1722625850194,-1656.90366778,0.00016438,2]
[333913347,1722625850206,-2910.42633222,0.00016438,2]
[333913348,1722625850216,-500.0,0.00016438,2]
[333913349,1722625850226,-745.38,0.00016438,2]
[333913350,1722625850236,-500.0,0.00016438,2]
[333913351,1722625850245,-1986.59366794,0.00016438,2]
[333913352,1722625850256,-1715.72633206,0.00016438,2]
[333913353,1722625850266,-252.67465066,0.00016438,2]
[333913354,1722625851387,-778.84,0.00016438,2]
[333913355,1722625853786,-247.18534934,0.00016438,2]
[333913356,1722625853802,-1743.71,0.00016438,2]
[333913357,1722625853816,-500.0,0.00016438,2]
[333913358,1722625853828,-2703.6,0.00016438,2]
[333913359,1722625853840,-500.0,0.00016438,2]
[333913360,1722625853853,-500.0,0.00016438,2]
[333913361,1722625853864,-629.03,0.00016438,2]
[333913362,1722625853876,-5207.39,0.00016438,2]
[333913363,1722625853887,-500.0,0.00016438,2]
[333913364,1722625853899,-5786.03,0.00016438,2]
[333913365,1722625853910,-1214.55,0.00016438,2]
[333913366,1722625853923,-500.0,0.00016438,2]
[333913367,1722625853934,-500.0,0.00016438,2]
[333913368,1722625853946,-547.89,0.00016438,2]
[333913369,1722625853958,-4590.8,0.00016438,2]
[333913370,1722625853971,-643.81,0.00016438,2]
[333913371,1722625853983,-2777.35,0.00016438,2]
[333913372,1722625853995,-500.0,0.00016438,2]
[333913373,1722625854007,-500.0,0.00016438,2]
[333913374,1722625854018,-1157.55,0.00016438,2]
[333913375,1722625854030,-500.0,0.00016438,2]
[333913376,1722625854042,-500.0,0.00016438,2]
[333913377,1722625854054,-500.0,0.00016438,2]
[333913378,1722625854065,-500.0,0.00016438,2]
[333913379,1722625854077,-500.0,0.00016438,2]
[333913380,1722625854088,-2958.31,0.00016438,2]
[333913381,1722625854100,-500.0,0.00016438,2]
[333913382,1722625854111,-925.39,0.00016438,2]
[333913383,1722625854122,-673.66,0.00016438,2]
[333913384,1722625854134,-3544.41,0.00016438,2]
[333913385,1722625854145,-843.53,0.00016438,2]
[333913386,1722625855465,-676.26,0.00016438,2]
[333913387,1722625855500,-3399.16,0.00016438,2]
[333913388,1722625855522,-3514.54,0.00016438,2]
[333913389,1722625855545,-1682.7,0.00016438,2]
[333913390,1722625855562,-3856.86,0.00016438,2]
[333913391,1722625855572,-3905.33,0.00016438,2]
[333913392,1722625855581,-5627.57,0.00016438,2]
[333913393,1722625855591,-2862.99,0.00016438,2]
[333913394,1722625855600,-6715.87,0.00016438,2]
[333913395,1722625855609,-500.0,0.00016438,2]
[333913396,1722625855618,-500.0,0.00016438,2]
[333913397,1722625855627,-500.0,0.00016438,2]
[333913398,1722625855636,-1125.39,0.00016438,2]
[333913399,1722625855646,-707.73,0.00016438,2]
[333913400,1722625855655,-3603.03,0.00016438,2]
[333913401,1722625855665,-500.0,0.00016438,2]
[333913402,1722625855674,-500.0,0.00016438,2]
[333913403,1722625855684,-348.94,0.00016438,2]
[333913404,1722625855694,-16222.94,0.00016438,2]
[333913405,1722625855703,-500.0,0.00016438,2]
[333913406,1722625855713,-500.0,0.00016438,2]
[333913407,1722625855725,-1298.08,0.00016438,2]
[333913408,1722625855735,-3486.56,0.00016438,2]
[333913409,1722625855744,-500.0,0.00016438,2]
[333913410,1722625855753,-500.0,0.00016438,2]
[333913411,1722625855763,-500.0,0.00016438,2]
[333913412,1722625855772,-1574.94,0.00016438,2]
[333913413,1722625855782,-6857.25,0.00016438,2]
[333913414,1722625855794,-2470.4,0.00016438,2]
[333913415,1722625855805,-2231.75,0.00016438,2]
[333913416,1722625855815,-3351.65,0.00016438,2]
[333913417,1722625855825,-500.0,0.00016438,2]
[333913418,1722625855834,-500.0,0.00016438,2]
[333913419,1722625855844,-2441.27,0.00016438,2]
[333913420,1722625855854,-520.9,0.00016438,2]
[333913421,1722625855864,-500.0,0.00016438,2]
[333913422,1722625855874,-3736.88,0.00016438,2]
[333913423,1722625855883,-5609.91,0.00016438,2]
[333913424,1722625855894,-543.12,0.00016438,2]
[333913425,1722625855905,-6257.54,0.00016438,2]
[333913426,1722625855914,-2684.3,0.00016438,2]
[333913427,1722625855924,-8324.79,0.00016438,2]
[333913428,1722625855933,-741.15,0.00016438,2]
[333913429,1722625855942,-500.0,0.00016438,2]
[333913430,1722625855952,-500.0,0.00016438,2]
[333913431,1722625855962,-1000.41,0.00016438,2]
[333913432,1722625855971,-500.0,0.00016438,2]
[333913433,1722625855982,-500.0,0.00016438,2]
[333913434,1722625855991,-2442.76,0.00016438,2]
[333913435,1722625856000,-500.0,0.00016438,2]
[333913436,1722625856010,-4849.69,0.00016438,2]
[333913437,1722625856019,-6965.91,0.00016438,2]
[333913438,1722625856029,-1617.0,0.00016438,2]
[333913439,1722625856038,-500.0,0.00016438,2]
[333913440,1722625856049,-3044.5,0.00016438,2]
[333913441,1722625856059,-4832.83,0.00016438,2]
[333913442,1722625856068,-2122.55,0.00016438,2]
[333913443,1722625856078,-809.5,0.00016438,2]
[333913444,1722625856087,-500.0,0.00016438,2]
[333913445,1722625856097,-1081.37,0.00016438,2]
[333913446,1722625856106,-1845.06,0.00016438,2]
[333913447,1722625856116,-4000.66,0.00016438,2]
[333913448,1722625856126,-2954.63,0.00016438,2]
[333913449,1722625856135,-9549.01,0.00016438,2]
[333913450,1722625856144,-500.0,0.00016438,2]
[333913451,1722625856154,-4829.57,0.00016438,2]
[333913452,1722625856163,-532.59,0.00016438,2]
[333913453,1722625856172,-558.48,0.00016438,2]
[333913454,1722625856182,-500.0,0.00016438,2]
[333913455,1722625856191,-500.0,0.00016438,2]
[333913456,1722625856200,-18773.21,0.00016438,2]
[333913457,1722625856210,-822.27,0.00016438,2]
[333913458,1722625856220,-599.2,0.00016438,2]
[333913459,1722625856229,-892.12,0.00016438,2]
[333913460,1722625856239,-2588.7,0.00016438,2]
[333913461,1722625856249,-500.0,0.00016438,2]
[333913462,1722625856258,-1032.35,0.00016438,2]
[333913463,1722625856268,-500.0,0.00016438,2]
[333913464,1722625856277,-822.91,0.00016438,2]
[333913465,1722625856286,-3049.17,0.00016438,2]
[333913466,1722625856297,-4115.91,0.00016438,2]
[333913467,1722625856306,-500.0,0.00016438,2]
[333913468,1722625856315,-787.76,0.00016438,2]
[333913469,1722625856324,-4878.97,0.00016438,2]
[333913470,1722625856336,-599.88,0.00016438,2]
[333913471,1722625856345,-500.0,0.00016438,2]
[333913472,1722625856356,-3320.96,0.00016438,2]
[333913473,1722625856365,-500.0,0.00016438,2]
[333913474,1722625856376,-629.41,0.00016438,2]
[333913475,1722625856386,-500.0,0.00016438,2]
[333913476,1722625856395,-3701.15,0.00016438,2]
[333913477,1722625856405,-655.87,0.00016438,2]
[333913478,1722625856418,-500.0,0.00016438,2]
[333913479,1722625856427,-1013.89,0.00016438,2]
[333913480,1722625856437,-6710.99,0.00016438,2]
[333913481,1722625856448,-500.0,0.00016438,2]
[333913482,1722625856458,-500.0,0.00016438,2]
[333913483,1722625856468,-554.39,0.00016438,2]
[333913484,1722625856480,-1404.74,0.00016438,2]
[333913485,1722625856490,-2386.57,0.00016438,2]
[333913486,1722625856501,-5697.45,0.00016438,2]
[333913487,1722625856513,-500.0,0.00016438,2]
[333913488,1722625856524,-500.0,0.00016438,2]
[333913489,1722625856535,-5908.74,0.00016438,2]
[333913490,1722625856547,-1088.53,0.00016438,2]